[Event "FIDE World Rapid Chess Championship 2021"]
[White "Shoker, Samy"]
[Black "Van Foreest, Lucas"]
[WhiteFideId "627143"]
[BlackFideId "1039792"]
[WhiteElo "2550"]
[BlackElo "2374"]
[Result "1-0"]
[Round "06"]
[TimeControl "900+10"]
[Date "2021.12.27"]
[WhiteClock "0:01:02"]
[BlackClock "0:05:06"]

1. Nf3 {[%clk 0:15:00]}  d5 {[%clk 0:15:00]} 2. g3 {[%clk 0:15:00]}  Nf6 {[%clk 0:15:00]} 3. Bg2 {[%clk 0:15:00]}  e6 {[%clk 0:15:46]} 4. O-O {[%clk 0:15:39]}  Be7 {[%clk 0:15:46]} 5. d3 {[%clk 0:15:39]}  O-O {[%clk 0:15:46]} 6. Nbd2 {[%clk 0:15:39]}  c5 {[%clk 0:15:46]} 7. e4 {[%clk 0:15:39]}  Nc6 {[%clk 0:15:46]} 8. Re1 {[%clk 0:15:39]}  h6 {[%clk 0:15:46]} 9. c3 {[%clk 0:15:39]}  Re8 {[%clk 0:16:21]} 10. a3 {[%clk 0:15:41]}  a5 {[%clk 0:15:12]} 11. a4 {[%clk 0:14:44]}  Bf8 {[%clk 0:15:12]} 12. h3 {[%clk 0:14:44]}  b6 {[%clk 0:15:12]} 13. g4 {[%clk 0:14:44]}  Ba6 {[%clk 0:15:12]} 14. Bf1 {[%clk 0:14:44]}  Qc7 {[%clk 0:14:39]} 15. Nb1 {[%clk 0:14:01]}  Rad8 {[%clk 0:14:40]} 16. Qc2 {[%clk 0:14:01]}  c4 {[%clk 0:14:40]} 17. e5 {[%clk 0:13:16]}  cxd3 {[%clk 0:14:48]} 18. Bxd3 {[%clk 0:13:16]}  Bxd3 {[%clk 0:14:48]} 19. Qxd3 {[%clk 0:13:16]}  Nd7 {[%clk 0:14:47]} 20. Qe2 {[%clk 0:12:44]}  f6 {[%clk 0:14:33]} 21. exf6 {[%clk 0:11:45]}  Nxf6 {[%clk 0:13:07]} 22. Na3 {[%clk 0:11:45]}  Ne4 {[%clk 0:13:07]} 23. Nb5 {[%clk 0:11:45]}  Qf7 {[%clk 0:13:07]} 24. Be3 {[%clk 0:11:45]}  Bc5 {[%clk 0:13:09]} 25. Nfd4 {[%clk 0:11:16]}  Nxd4 {[%clk 0:13:09]} 26. cxd4 {[%clk 0:11:16]}  Bb4 {[%clk 0:13:09]} 27. Rec1 {[%clk 0:11:04]}  e5 {[%clk 0:12:49]} 28. Rc7 {[%clk 0:11:04]}  Re7 {[%clk 0:12:49]} 29. Rxe7 {[%clk 0:11:01]}  Qxe7 {[%clk 0:12:34]} 30. dxe5 {[%clk 0:11:01]}  Bc5 {[%clk 0:12:41]} 31. Nd4 {[%clk 0:08:13]}  Bxd4 {[%clk 0:12:10]} 32. Bxd4 {[%clk 0:08:13]}  Ng5 {[%clk 0:12:10]} 33. h4 {[%clk 0:05:27]}  Nh3+ {[%clk 0:11:16]} 34. Kf1 {[%clk 0:02:46]}  Qxh4 {[%clk 0:11:16]} 35. Ra3 {[%clk 0:02:46]}  Rf8 {[%clk 0:10:51]} 36. Bxb6 {[%clk 0:02:26]}  Nxf2 {[%clk 0:10:51]} 37. Rf3 {[%clk 0:02:26]}  Ne4 {[%clk 0:09:21]} 38. Rxf8+ {[%clk 0:01:35]}  Kxf8 {[%clk 0:09:21]} 39. Qf3+ {[%clk 0:01:35]}  Ke7 {[%clk 0:09:21]} 40. Bxa5 {[%clk 0:01:35]}  Qg5 {[%clk 0:09:21]} 41. Bb4+ {[%clk 0:01:35]}  Ke6 {[%clk 0:09:21]} 42. Qf5+ {[%clk 0:01:59]}  Qxf5+ {[%clk 0:09:12]} 43. gxf5+ {[%clk 0:01:59]}  Kxe5 {[%clk 0:09:12]} 44. a5 {[%clk 0:01:59]}  Nd6 {[%clk 0:09:12]} 45. a6 {[%clk 0:02:00]}  Nb5 {[%clk 0:08:43]} 46. Bc5 {[%clk 0:02:00]}  d4 {[%clk 0:08:43]} 47. Ke2 {[%clk 0:01:13]}  Kd5 {[%clk 0:08:43]} 48. a7 {[%clk 0:01:13]}  Nc7 {[%clk 0:08:43]} 49. Bf8 {[%clk 0:01:13]}  h5 {[%clk 0:08:43]} 50. Bxg7 {[%clk 0:01:13]}  h4 {[%clk 0:08:43]} 51. Kf3 {[%clk 0:01:02]}  h3 {[%clk 0:05:35]} 52. Kg3 {[%clk 0:01:02]}  Ke4 {[%clk 0:05:35]} 53. f6 {[%clk 0:01:02]}  Kd5 {[%clk 0:05:06]} 1-0


[Site "http://www.Chess.com"]

[Event "FIDE World Rapid Chess Championship 2021"]
[White "Indjic, Aleksandar"]
[Black "Babazada, Khazar"]
[WhiteFideId "911925"]
[BlackFideId "13413554"]
[WhiteElo "2544"]
[BlackElo "2170"]
[Result "1-0"]
[Round "06"]
[TimeControl "900+10"]
[Date "2021.12.27"]
[WhiteClock "0:07:37"]
[BlackClock "0:00:31"]

1. d4 {[%clk 0:15:00]}  g6 {[%clk 0:15:18]} 2. c4 {[%clk 0:15:14]}  Bg7 {[%clk 0:15:18]} 3. e4 {[%clk 0:15:14]}  d6 {[%clk 0:15:18]} 4. Nc3 {[%clk 0:15:14]}  Nf6 {[%clk 0:15:18]} 5. Nf3 {[%clk 0:15:12]}  O-O {[%clk 0:15:10]} 6. Be2 {[%clk 0:15:12]}  e5 {[%clk 0:15:12]} 7. Be3 {[%clk 0:14:20]}  Nc6 {[%clk 0:14:28]} 8. d5 {[%clk 0:14:22]}  Ne7 {[%clk 0:12:12]} 9. Nd2 {[%clk 0:14:22]}  Nd7 {[%clk 0:12:13]} 10. b4 {[%clk 0:14:31]}  f5 {[%clk 0:12:13]} 11. f3 {[%clk 0:14:31]}  a5 {[%clk 0:10:56]} 12. a3 {[%clk 0:13:59]}  f4 {[%clk 0:09:24]} 13. Bf2 {[%clk 0:14:10]}  g5 {[%clk 0:09:24]} 14. c5 {[%clk 0:14:10]}  Nf6 {[%clk 0:09:26]} 15. Nc4 {[%clk 0:14:11]}  axb4 {[%clk 0:07:00]} 16. axb4 {[%clk 0:13:23]}  Rxa1 {[%clk 0:07:00]} 17. Qxa1 {[%clk 0:13:23]}  g4 {[%clk 0:07:00]} 18. b5 {[%clk 0:13:23]}  g3 {[%clk 0:06:20]} 19. hxg3 {[%clk 0:13:24]}  fxg3 {[%clk 0:06:20]} 20. Bxg3 {[%clk 0:13:24]}  Ng6 {[%clk 0:06:20]} 21. c6 {[%clk 0:13:28]}  bxc6 {[%clk 0:06:19]} 22. bxc6 {[%clk 0:11:39]}  Nf4 {[%clk 0:06:19]} 23. Bf1 {[%clk 0:11:39]}  N6h5 {[%clk 0:04:53]} 24. Bh4 {[%clk 0:11:48]}  Qe8 {[%clk 0:04:53]} 25. Qa7 {[%clk 0:11:52]}  Qg6 {[%clk 0:03:56]} 26. g4 {[%clk 0:09:18]}  Nf6 {[%clk 0:01:50]} 27. Qxc7 {[%clk 0:08:23]}  Bxg4 {[%clk 0:01:50]} 28. Rg1 {[%clk 0:08:23]}  Ne8 {[%clk 0:01:50]} 29. Qe7 {[%clk 0:08:00]}  Bf6 {[%clk 0:00:31]} 30. Rxg4 {[%clk 0:07:37]} 1-0


[Site "http://www.Chess.com"]

[Event "FIDE World Rapid Chess Championship 2021"]
[White "Teclaf, Pawel"]
[Black "Bartel, Mateusz"]
[WhiteFideId "1185934"]
[BlackFideId "1112635"]
[WhiteElo "2345"]
[BlackElo "2543"]
[Result "1/2-1/2"]
[Round "06"]
[TimeControl "900+10"]
[Date "2021.12.27"]
[WhiteClock "0:04:13"]
[BlackClock "0:03:32"]

1. e4 {[%clk 0:15:00]}  e5 {[%clk 0:15:00]} 2. Nf3 {[%clk 0:15:00]}  Nc6 {[%clk 0:15:25]} 3. Bb5 {[%clk 0:15:34]}  a6 {[%clk 0:15:25]} 4. Ba4 {[%clk 0:15:34]}  Nf6 {[%clk 0:15:25]} 5. O-O {[%clk 0:15:34]}  Be7 {[%clk 0:15:25]} 6. d3 {[%clk 0:15:34]}  d6 {[%clk 0:15:25]} 7. a3 {[%clk 0:15:47]}  O-O {[%clk 0:15:30]} 8. h3 {[%clk 0:14:07]}  Nd7 {[%clk 0:15:20]} 9. Be3 {[%clk 0:14:07]}  Bf6 {[%clk 0:15:20]} 10. Nc3 {[%clk 0:13:59]}  Ne7 {[%clk 0:13:15]} 11. Bb3 {[%clk 0:13:59]}  c5 {[%clk 0:12:50]} 12. Nh2 {[%clk 0:13:22]}  Ng6 {[%clk 0:12:50]} 13. Ng4 {[%clk 0:12:47]}  Nb6 {[%clk 0:10:21]} 14. a4 {[%clk 0:10:57]}  Be6 {[%clk 0:09:47]} 15. Ba2 {[%clk 0:08:24]}  Bg5 {[%clk 0:07:51]} 16. a5 {[%clk 0:08:24]}  Nd7 {[%clk 0:07:51]} 17. Nd5 {[%clk 0:06:08]}  Nf4 {[%clk 0:07:51]} 18. Qd2 {[%clk 0:04:38]}  Bxd5 {[%clk 0:06:04]} 19. Bxd5 {[%clk 0:02:52]}  Nxd5 {[%clk 0:06:04]} 20. Bxg5 {[%clk 0:02:52]}  f6 {[%clk 0:04:41]} 21. Bh4 {[%clk 0:04:13]}  Ne7 {[%clk 0:03:32]} 1/2-1/2


[Site "http://www.Chess.com"]

[Event "FIDE World Rapid Chess Championship 2021"]
[White "Kobalia, Mikhail"]
[Black "Suleymanli, Aydin"]
[WhiteFideId "4119150"]
[BlackFideId "13413937"]
[WhiteElo "2543"]
[BlackElo "2202"]
[Result "0-1"]
[Round "06"]
[TimeControl "900+10"]
[Date "2021.12.27"]
[WhiteClock "0:01:14"]
[BlackClock "0:00:34"]

1. e4 {[%clk 0:15:00]}  c6 {[%clk 0:15:00]} 2. d4 {[%clk 0:15:17]}  d5 {[%clk 0:15:00]} 3. exd5 {[%clk 0:15:17]}  cxd5 {[%clk 0:15:00]} 4. Bd3 {[%clk 0:15:17]}  Nc6 {[%clk 0:15:00]} 5. c3 {[%clk 0:15:17]}  Qc7 {[%clk 0:15:00]} 6. h3 {[%clk 0:15:17]}  g6 {[%clk 0:14:45]} 7. Ne2 {[%clk 0:15:36]}  Bf5 {[%clk 0:14:45]} 8. Bxf5 {[%clk 0:15:36]}  gxf5 {[%clk 0:14:45]} 9. Bf4 {[%clk 0:15:36]}  Qd7 {[%clk 0:14:45]} 10. Nd2 {[%clk 0:15:36]}  e6 {[%clk 0:14:45]} 11. g4 {[%clk 0:15:36]}  Nge7 {[%clk 0:14:30]} 12. Ng3 {[%clk 0:15:54]}  Ng6 {[%clk 0:14:30]} 13. Bg5 {[%clk 0:15:54]}  Be7 {[%clk 0:13:40]} 14. Bh6 {[%clk 0:16:19]}  O-O-O {[%clk 0:12:12]} 15. gxf5 {[%clk 0:16:19]}  exf5 {[%clk 0:12:12]} 16. Qh5 {[%clk 0:16:16]}  Qe6+ {[%clk 0:11:11]} 17. Kd1 {[%clk 0:16:16]}  Nh4 {[%clk 0:09:40]} 18. Bg5 {[%clk 0:15:19]}  Ng2 {[%clk 0:07:22]} 19. Rg1 {[%clk 0:10:27]}  Bxg5 {[%clk 0:06:01]} 20. Rxg2 {[%clk 0:10:27]}  h6 {[%clk 0:05:59]} 21. h4 {[%clk 0:09:30]}  f4 {[%clk 0:03:13]} 22. Ne2 {[%clk 0:09:30]}  Rde8 {[%clk 0:03:13]} 23. Rg1 {[%clk 0:07:19]}  Bxh4 {[%clk 0:02:02]} 24. Nxf4 {[%clk 0:03:55]}  Qf6 {[%clk 0:02:02]} 25. Nxd5 {[%clk 0:04:02]}  Qxf2 {[%clk 0:00:48]} 26. Rf1 {[%clk 0:02:47]}  Qh2 {[%clk 0:00:55]} 27. Nf6 {[%clk 0:02:07]}  Re6 {[%clk 0:00:14]} 28. Nfe4 {[%clk 0:01:04]}  Rhe8 {[%clk 0:00:14]} 29. Qf5 {[%clk 0:01:04]}  Kb8 {[%clk 0:00:14]} 30. d5 {[%clk 0:00:51]}  Re5 {[%clk 0:00:02]} 31. Qf4 {[%clk 0:00:51]}  Qxf4 {[%clk 0:00:02]} 32. Rxf4 {[%clk 0:00:51]}  Bg5 {[%clk 0:00:02]} 33. Rxf7 {[%clk 0:00:51]}  Rxd5 {[%clk 0:00:02]} 34. Nxg5 {[%clk 0:00:51]}  hxg5 {[%clk 0:00:03]} 35. Rf2 {[%clk 0:00:50]}  Ne5 {[%clk 0:00:03]} 36. Re2 {[%clk 0:00:50]}  Rc8 {[%clk 0:00:03]} 37. Kc2 {[%clk 0:00:50]}  Nc6 {[%clk 0:00:03]} 38. Re4 {[%clk 0:01:00]}  Nd4+ {[%clk 0:00:22]} 39. Kc1 {[%clk 0:01:00]}  Rh8 {[%clk 0:00:22]} 40. Re1 {[%clk 0:01:00]}  Nf5 {[%clk 0:00:22]} 41. Kc2 {[%clk 0:01:00]}  Rh2 {[%clk 0:00:22]} 42. Rad1 {[%clk 0:01:00]}  g4 {[%clk 0:00:22]} 43. Kc1 {[%clk 0:01:00]}  g3 {[%clk 0:00:22]} 44. Nf3 {[%clk 0:01:14]}  Rxd1+ {[%clk 0:00:23]} 45. Rxd1 {[%clk 0:01:14]}  Rf2 {[%clk 0:00:23]} 46. Ng1 {[%clk 0:01:14]}  g2 {[%clk 0:00:23]} 47. Nh3 {[%clk 0:01:14]}  Rf1 {[%clk 0:00:23]} 48. Kd2 {[%clk 0:01:14]}  Nh4 {[%clk 0:00:34]} 0-1


[Site "http://www.Chess.com"]

[Event "FIDE World Rapid Chess Championship 2021"]
[White "Tari, Aryan"]
[Black "Mitrabha, Guha"]
[WhiteFideId "1510045"]
[BlackFideId "5057000"]
[WhiteElo "2542"]
[BlackElo "2107"]
[Result "0-1"]
[Round "06"]
[TimeControl "900+10"]
[Date "2021.12.27"]
[WhiteClock "0:00:00"]
[BlackClock "0:00:59"]

1. d4 {[%clk 0:15:00]}  Nf6 {[%clk 0:15:00]} 2. Nf3 {[%clk 0:15:00]}  e6 {[%clk 0:15:34]} 3. Bf4 {[%clk 0:15:32]}  b6 {[%clk 0:15:34]} 4. e3 {[%clk 0:15:32]}  Bb7 {[%clk 0:15:34]} 5. Bd3 {[%clk 0:15:32]}  d6 {[%clk 0:15:34]} 6. h3 {[%clk 0:15:32]}  Nbd7 {[%clk 0:15:34]} 7. O-O {[%clk 0:15:32]}  g6 {[%clk 0:15:34]} 8. Bh2 {[%clk 0:15:32]}  Bg7 {[%clk 0:15:34]} 9. Nbd2 {[%clk 0:15:32]}  O-O {[%clk 0:15:34]} 10. e4 {[%clk 0:15:21]}  Qe7 {[%clk 0:16:21]} 11. Re1 {[%clk 0:15:21]}  e5 {[%clk 0:16:21]} 12. c3 {[%clk 0:15:21]}  Nh5 {[%clk 0:16:21]} 13. a4 {[%clk 0:15:21]}  a6 {[%clk 0:16:21]} 14. Nc4 {[%clk 0:15:34]}  Kh8 {[%clk 0:16:01]} 15. b4 {[%clk 0:15:34]}  Rad8 {[%clk 0:15:27]} 16. Ra2 {[%clk 0:11:53]}  Rfe8 {[%clk 0:15:01]} 17. Rae2 {[%clk 0:10:55]}  Qf6 {[%clk 0:14:23]} 18. Qc1 {[%clk 0:10:55]}  Kg8 {[%clk 0:14:25]} 19. Kf1 {[%clk 0:09:35]}  Kf8 {[%clk 0:11:38]} 20. Bc2 {[%clk 0:08:38]}  h6 {[%clk 0:10:58]} 21. Bb3 {[%clk 0:07:06]}  Nf4 {[%clk 0:09:26]} 22. Re3 {[%clk 0:05:45]}  g5 {[%clk 0:06:37]} 23. Bxf4 {[%clk 0:04:14]}  Qxf4 {[%clk 0:06:29]} 24. dxe5 {[%clk 0:03:05]}  dxe5 {[%clk 0:04:02]} 25. Nfd2 {[%clk 0:02:29]}  g4 {[%clk 0:04:02]} 26. hxg4 {[%clk 0:02:20]}  Nf6 {[%clk 0:03:12]} 27. Rf3 {[%clk 0:02:20]}  Qxg4 {[%clk 0:03:12]} 28. Ne3 {[%clk 0:02:20]}  Qg5 {[%clk 0:02:39]} 29. Rg3 {[%clk 0:02:30]}  Qf4 {[%clk 0:02:39]} 30. Rf3 {[%clk 0:02:30]}  Qg5 {[%clk 0:02:39]} 31. Kg1 {[%clk 0:02:30]}  h5 {[%clk 0:02:04]} 32. Rf5 {[%clk 0:02:22]}  Qg6 {[%clk 0:02:04]} 33. Nf3 {[%clk 0:02:22]}  Bxe4 {[%clk 0:02:04]} 34. Nxe5 {[%clk 0:02:22]}  Rxe5 {[%clk 0:02:04]} 35. Rxe5 {[%clk 0:02:22]}  Bh6 {[%clk 0:02:04]} 36. Bc2 {[%clk 0:01:50]}  Bxe3 {[%clk 0:00:57]} 37. Bxe4 {[%clk 0:01:50]}  Bxc1 {[%clk 0:00:57]} 38. Bxg6 {[%clk 0:01:50]}  Bb2 {[%clk 0:00:57]} 39. Re7 {[%clk 0:00:28]}  fxg6 {[%clk 0:01:01]} 40. Rxc7 {[%clk 0:00:28]}  Rd6 {[%clk 0:01:01]} 41. f3 {[%clk 0:00:15]}  Nd5 {[%clk 0:00:02]} 42. Rc8+ {[%clk 0:00:15]}  Kf7 {[%clk 0:00:02]} 43. Rd1 {[%clk 0:00:15]}  Ke6 {[%clk 0:00:02]} 44. Rd2 {[%clk 0:00:15]}  Bxc3 {[%clk 0:00:02]} 45. Rxd5 {[%clk 0:00:15]}  Kxd5 {[%clk 0:00:02]} 46. Rxc3 {[%clk 0:00:15]}  Rc6 {[%clk 0:00:02]} 47. Re3 {[%clk 0:00:52]}  Rc4 {[%clk 0:00:38]} 48. b5 {[%clk 0:00:52]}  Rxa4 {[%clk 0:00:38]} 49. bxa6 {[%clk 0:00:52]}  Rxa6 {[%clk 0:00:38]} 50. Re8 {[%clk 0:00:52]}  b5 {[%clk 0:00:38]} 51. Rb8 {[%clk 0:00:52]}  Kc4 {[%clk 0:00:38]} 52. Kf2 {[%clk 0:00:52]}  b4 {[%clk 0:00:38]} 53. Ke3 {[%clk 0:00:52]}  b3 {[%clk 0:00:38]} 54. f4 {[%clk 0:00:52]}  Kc3 {[%clk 0:00:38]} 55. Rc8+ {[%clk 0:00:52]}  Kb2 {[%clk 0:00:38]} 56. Kd3 {[%clk 0:01:15]}  Ka2 {[%clk 0:00:59]} 57. Kd4 {[%clk 0:00:00]} 0-1


[Site "http://www.Chess.com"]

[Event "FIDE World Rapid Chess Championship 2021"]
[White "Aditya, Mittal"]
[Black "Karjakin, Sergey"]
[WhiteFideId "35042025"]
[BlackFideId "14109603"]
[WhiteElo "1488"]
[BlackElo "2757"]
[Result "0-1"]
[Round "06"]
[TimeControl "900+10"]
[Date "2021.12.27"]
[WhiteClock "0:00:43"]
[BlackClock "0:00:24"]

1. d4 {[%clk 0:15:00]}  Nf6 {[%clk 0:15:00]} 2. c4 {[%clk 0:15:00]}  e6 {[%clk 0:15:00]} 3. Nf3 {[%clk 0:15:00]}  b6 {[%clk 0:15:25]} 4. g3 {[%clk 0:15:34]}  Ba6 {[%clk 0:15:25]} 5. Qc2 {[%clk 0:15:34]}  Bb4+ {[%clk 0:15:25]} 6. Bd2 {[%clk 0:15:34]}  Be7 {[%clk 0:15:25]} 7. e4 {[%clk 0:15:28]}  d5 {[%clk 0:15:21]} 8. cxd5 {[%clk 0:15:28]}  Bxf1 {[%clk 0:15:21]} 9. Kxf1 {[%clk 0:15:28]}  exd5 {[%clk 0:15:21]} 10. e5 {[%clk 0:15:28]}  Ne4 {[%clk 0:15:21]} 11. Be3 {[%clk 0:15:12]}  Qd7 {[%clk 0:14:40]} 12. Kg2 {[%clk 0:14:19]}  O-O {[%clk 0:14:40]} 13. h4 {[%clk 0:14:18]}  c5 {[%clk 0:10:14]} 14. Nc3 {[%clk 0:13:29]}  cxd4 {[%clk 0:09:52]} 15. Bxd4 {[%clk 0:12:43]}  Rc8 {[%clk 0:06:56]} 16. Qe2 {[%clk 0:10:27]}  Nxc3 {[%clk 0:08:00]} 17. Bxc3 {[%clk 0:10:27]}  Nc6 {[%clk 0:08:00]} 18. Rad1 {[%clk 0:10:27]}  Rd8 {[%clk 0:08:00]} 19. Rd3 {[%clk 0:10:01]}  Qe6 {[%clk 0:06:28]} 20. Rhd1 {[%clk 0:10:01]}  Rd7 {[%clk 0:07:57]} 21. Qd2 {[%clk 0:07:41]}  Rad8 {[%clk 0:07:57]} 22. Qf4 {[%clk 0:06:36]}  h5 {[%clk 0:07:53]} 23. b4 {[%clk 0:06:36]}  b5 {[%clk 0:05:40]} 24. a3 {[%clk 0:06:14]}  a6 {[%clk 0:02:50]} 25. Bb2 {[%clk 0:06:14]}  Qg6 {[%clk 0:02:50]} 26. R3d2 {[%clk 0:06:14]}  a5 {[%clk 0:03:18]} 27. bxa5 {[%clk 0:03:39]}  Nxa5 {[%clk 0:01:52]} 28. Re2 {[%clk 0:02:28]}  Nc4 {[%clk 0:01:53]} 29. Rde1 {[%clk 0:02:28]}  Qg4 {[%clk 0:01:47]} 30. Qxg4 {[%clk 0:01:32]}  hxg4 {[%clk 0:01:47]} 31. Nd4 {[%clk 0:01:32]}  Bxa3 {[%clk 0:01:47]} 32. Bxa3 {[%clk 0:01:32]}  Nxa3 {[%clk 0:01:47]} 33. Ra1 {[%clk 0:01:45]}  Nc4 {[%clk 0:01:26]} 34. Nxb5 {[%clk 0:01:45]}  d4 {[%clk 0:01:26]} 35. Rd1 {[%clk 0:01:34]}  Rd5 {[%clk 0:00:44]} 36. e6 {[%clk 0:00:26]}  fxe6 {[%clk 0:00:59]} 37. Nc7 {[%clk 0:00:26]}  d3 {[%clk 0:00:59]} 38. Re4 {[%clk 0:00:26]}  Rd4 {[%clk 0:00:59]} 39. Rxd4 {[%clk 0:00:26]}  Rxd4 {[%clk 0:00:59]} 40. Nxe6 {[%clk 0:00:26]}  Rd6 {[%clk 0:00:59]} 41. h5 {[%clk 0:00:43]}  d2 {[%clk 0:00:24]} 42. Nc5 {[%clk 0:00:43]}  Nb2 {[%clk 0:00:24]} 0-1


[Site "http://www.Chess.com"]

[Event "FIDE World Rapid Chess Championship 2021"]
[White "Oparin, Grigoriy"]
[Black "Moroni, Luca Jr"]
[WhiteFideId "24125890"]
[BlackFideId "865834"]
[WhiteElo "2725"]
[BlackElo "2519"]
[Result "1/2-1/2"]
[Round "06"]
[TimeControl "900+10"]
[Date "2021.12.27"]
[WhiteClock "0:00:57"]
[BlackClock "0:00:28"]

1. e4 {[%clk 0:15:00]}  g6 {[%clk 0:15:00]} 2. d4 {[%clk 0:15:00]}  Bg7 {[%clk 0:15:00]} 3. Nf3 {[%clk 0:15:00]}  d6 {[%clk 0:15:34]} 4. Bd3 {[%clk 0:15:38]}  Nf6 {[%clk 0:15:34]} 5. O-O {[%clk 0:15:38]}  O-O {[%clk 0:15:34]} 6. Re1 {[%clk 0:15:38]}  Nc6 {[%clk 0:15:34]} 7. c3 {[%clk 0:15:38]}  e5 {[%clk 0:15:34]} 8. h3 {[%clk 0:15:38]}  Qe7 {[%clk 0:15:34]} 9. Na3 {[%clk 0:16:05]}  Nh5 {[%clk 0:15:13]} 10. Bg5 {[%clk 0:15:15]}  Bf6 {[%clk 0:14:49]} 11. Be3 {[%clk 0:15:08]}  a6 {[%clk 0:13:11]} 12. Rc1 {[%clk 0:15:10]}  Bg7 {[%clk 0:13:11]} 13. b4 {[%clk 0:14:30]}  exd4 {[%clk 0:12:11]} 14. cxd4 {[%clk 0:10:12]}  Nxb4 {[%clk 0:12:11]} 15. Bb1 {[%clk 0:10:12]}  Nf6 {[%clk 0:11:16]} 16. d5 {[%clk 0:09:42]}  a5 {[%clk 0:06:02]} 17. Nb5 {[%clk 0:09:42]}  Na6 {[%clk 0:06:02]} 18. Bd4 {[%clk 0:08:39]}  Qd8 {[%clk 0:04:35]} 19. Qc2 {[%clk 0:05:32]}  Bd7 {[%clk 0:04:10]} 20. Qb2 {[%clk 0:05:32]}  Re8 {[%clk 0:03:44]} 21. a4 {[%clk 0:03:02]}  Bxb5 {[%clk 0:02:45]} 22. Qxb5 {[%clk 0:02:44]}  Nd7 {[%clk 0:02:45]} 23. Qxb7 {[%clk 0:02:04]}  Bxd4 {[%clk 0:02:48]} 24. Nxd4 {[%clk 0:02:04]}  Ndc5 {[%clk 0:02:48]} 25. Qb5 {[%clk 0:02:04]}  Nb4 {[%clk 0:02:48]} 26. e5 {[%clk 0:01:38]}  Rxe5 {[%clk 0:02:11]} 27. Rxe5 {[%clk 0:01:38]}  dxe5 {[%clk 0:02:11]} 28. Nc6 {[%clk 0:01:37]}  Nxc6 {[%clk 0:01:39]} 29. dxc6 {[%clk 0:01:37]}  Ne6 {[%clk 0:01:39]} 30. Qxe5 {[%clk 0:01:37]}  Qd2 {[%clk 0:01:39]} 31. Qc3 {[%clk 0:01:43]}  Qxc3 {[%clk 0:00:49]} 32. Rxc3 {[%clk 0:01:43]}  Rb8 {[%clk 0:00:49]} 33. Ba2 {[%clk 0:01:43]}  Nd4 {[%clk 0:00:49]} 34. Rc5 {[%clk 0:01:43]}  Rb4 {[%clk 0:00:42]} 35. Rxa5 {[%clk 0:01:21]}  Nxc6 {[%clk 0:00:42]} 36. Ra6 {[%clk 0:01:21]}  Ne5 {[%clk 0:00:08]} 37. a5 {[%clk 0:01:06]}  Ra4 {[%clk 0:00:08]} 38. Bd5 {[%clk 0:01:06]}  c6 {[%clk 0:00:08]} 39. Bb3 {[%clk 0:01:06]}  Ra3 {[%clk 0:00:32]} 40. Bc2 {[%clk 0:00:57]}  Ra1+ {[%clk 0:00:32]} 41. Kh2 {[%clk 0:00:57]}  Ra2 {[%clk 0:00:32]} 42. Be4 {[%clk 0:00:57]}  Rxf2 {[%clk 0:00:32]} 43. Bxc6 {[%clk 0:00:57]}  Nxc6 {[%clk 0:00:28]} 1/2-1/2


[Site "http://www.Chess.com"]